fUSD/lending_fUSD_20241215
["ID","MTS","AMOUNT","RATE_DAILY","PERIOD"]
[345387468,1734222646050,-642.99,0.00013999,2]
[345387470,1734222646059,-500.0,0.00013999,2]
[345387472,1734222646069,-642.99,0.00013999,2]
[345387474,1734222646078,-500.0,0.00013999,2]
[345387476,1734222646088,-642.99,0.00013999,2]
[345387477,1734222646097,-500.0,0.00013999,2]
[345387478,1734222646106,-642.99,0.00013999,2]
[345387479,1734222646115,-500.0,0.00013999,2]
[345387480,1734222646124,-642.99,0.00013999,2]
[345387482,1734222646136,-500.0,0.00013999,2]
[345387484,1734222646145,-642.99,0.00013999,2]
[345387486,1734222646154,-500.0,0.00013999,2]
[345387488,1734222646163,-642.99,0.00013999,2]
[345387490,1734222646172,-228.71435467,0.00013999,2]
[345387492,1734222646185,-500.0,0.00013999,2]
[345387494,1734222646200,-151.0,0.00013999,2]
[345387496,1734222646209,-642.99,0.00013999,2]
[345387498,1734222646219,-500.0,0.00013999,2]
[345387500,1734222646229,-151.0,0.00013999,2]
[345387502,1734222646238,-642.99,0.00013999,2]
[345387504,1734222646247,-500.0,0.00013999,2]
[345387506,1734222646257,-642.99,0.00013999,2]
[345387508,1734222646268,-151.0,0.00013999,2]
[345387510,1734222646277,-500.0,0.00013999,2]
[345387512,1734222646286,-642.99,0.00013999,2]
[345387514,1734222646296,-642.99,0.00013999,2]
[345387516,1734222646306,-500.0,0.00013999,2]
[345387519,1734222646316,-642.99,0.00013999,2]
[345387520,1734222646325,-500.0,0.00013999,2]
[345387522,1734222646335,-362.106767,0.00013999,2]
[345387524,1734222646344,-500.0,0.00013999,2]
[345387526,1734222646353,-642.99,0.00013999,2]
[345387528,1734222646362,-362.106767,0.00013999,2]
[345387530,1734222646371,-642.99,0.00013999,2]
[345387532,1734222646380,-500.0,0.00013999,2]
[345387534,1734222646390,-362.106767,0.00013999,2]
[345387536,1734222646399,-643.09532051,0.00013999,2]
[345387538,1734222646408,-500.0,0.00013999,2]
[345387540,1734222646418,-362.106767,0.00013999,2]
[345387542,1734222646427,-307.99,0.00013999,2]
[345387544,1734222646435,-362.106767,0.00013999,2]
[345387546,1734222646450,-393.04894075,0.00013999,2]
[345387548,1734222646463,-500.0,0.00013999,2]
[345387550,1734222646472,-187.71,0.00013999,2]
[345387552,1734222646481,-362.106767,0.00013999,2]
[345387554,1734222646491,-500.0,0.00013999,2]
[345387556,1734222646500,-500.0,0.00013999,2]
[345387558,1734222646510,-362.106767,0.00013999,2]
[345387560,1734222646519,-500.0,0.00013999,2]
[345387562,1734222646529,-386.7121847,0.00013999,2]
[345387564,1734222646539,-362.106767,0.00013999,2]
[345387566,1734222646549,-449.7227198,0.00013999,2]
[345387568,1734222646559,-362.106767,0.00013999,2]
[345387570,1734222646569,-362.106767,0.00013999,2]
[345387572,1734222646579,-501.70764162,0.00013999,2]
[345387574,1734222646589,-500.0,0.00013999,2]
[345387576,1734222646599,-290.29906831,0.00013999,2]
[345387578,1734222646608,-505.68346431,0.00013999,2]
[345387580,1734222646618,-151.0,0.00013999,2]
[345387582,1734222646627,-151.0,0.00013999,2]
[345387584,1734222646637,-151.0,0.00013999,2]
[345387586,1734222646646,-151.0,0.00013999,2]
[345387588,1734222646656,-151.0,0.00013999,2]
[345387590,1734222646665,-500.0,0.00013999,2]
[345387592,1734222646675,-500.0,0.00013999,2]
[345387594,1734222646683,-151.0,0.00013999,2]
[345387596,1734222646701,-500.0,0.00013999,2]
[345387598,1734222646711,-151.0,0.00013999,2]
[345387600,1734222646720,-500.0,0.00013999,2]
[345387602,1734222646729,-151.0,0.00013999,2]
[345387604,1734222646739,-151.0,0.00013999,2]
[345387606,1734222646748,-500.0,0.00013999,2]
[345387608,1734222646758,-151.0,0.00013999,2]
[345387610,1734222646768,-500.0,0.00013999,2]
[345387612,1734222646777,-500.0,0.00013999,2]
[345387614,1734222646787,-500.0,0.00013999,2]
[345387616,1734222646797,-500.0,0.00013999,2]
[345387618,1734222646806,-500.0,0.00013999,2]
[345387620,1734222646815,-500.0,0.00013999,2]
[345387622,1734222646825,-390.06,0.00013999,2]
[345387625,1734222646834,-500.76252636,0.00013999,2]
[345387627,1734222646845,-531.74,0.00013999,2]
[345387629,1734222646855,-500.0,0.00013999,2]
[345387631,1734222646864,-500.0,0.00013999,2]
[345387633,1734222646873,-500.0,0.00013999,2]
[345387635,1734222646883,-500.0,0.00013999,2]
[345387637,1734222646893,-500.0,0.00013999,2]
[345387639,1734222646903,-500.0,0.00013999,2]
[345387641,1734222646912,-500.0,0.00013999,2]
[345387643,1734222646921,-151.0,0.00013999,2]
[345387645,1734222646931,-500.0,0.00013999,2]
[345387647,1734222646944,-151.0,0.00013999,2]
[345387649,1734222646954,-500.0,0.00013999,2]
[345387651,1734222646964,-151.0,0.00013999,2]
[345387653,1734222646973,-500.0,0.00013999,2]
[345387655,1734222646983,-500.0,0.00013999,2]
[345387657,1734222646992,-500.0,0.00013999,2]
[345387659,1734222647002,-431.47,0.00013999,2]
[345387661,1734222647011,-151.0,0.00013999,2]
[345387663,1734222647020,-151.0,0.00013999,2]
[345387665,1734222647030,-500.0,0.00013999,2]
[345387667,1734222647039,-500.0,0.00013999,2]
[345387669,1734222647048,-500.0,0.00013999,2]
[345387671,1734222647058,-500.0,0.00013999,2]
[345387673,1734222647067,-500.0,0.00013999,2]
[345387675,1734222647076,-500.0,0.00013999,2]
[345387677,1734222647085,-500.0,0.00013999,2]
[345387679,1734222647095,-500.0,0.00013999,2]
[345387681,1734222647105,-500.0,0.00013999,2]
[345387684,1734222647118,-500.0,0.00013999,2]
[345387686,1734222647127,-500.0,0.00013999,2]
[345387688,1734222647137,-468.75,0.00013999,2]
[345387690,1734222647147,-151.0,0.00013999,2]
[345387692,1734222647156,-500.0,0.00013999,2]
[345387694,1734222647166,-500.0,0.00013999,2]
[345387696,1734222647178,-151.0,0.00013999,2]
[345387698,1734222647190,-500.0,0.00013999,2]
[345387699,1734222647199,-500.0,0.00013999,2]
[345387702,1734222647209,-500.0,0.00013999,2]
[345387704,1734222647219,-604.66321404,0.00013999,2]
[345387706,1734222647229,-151.0,0.00013999,2]
[345387708,1734222647239,-500.0,0.00013999,2]
[345387710,1734222647248,-500.0,0.00013999,2]
[345387712,1734222647258,-500.0,0.00013999,2]
[345387714,1734222647267,-151.0,0.00013999,2]
[345387716,1734222647276,-501.17,0.00013999,2]
[345387718,1734222647286,-151.0,0.00013999,2]
[345387720,1734222647295,-151.0,0.00013999,2]
[345387722,1734222647304,-151.0,0.00013999,2]
[345387724,1734222647313,-216.279974,0.00013999,2]
[345387726,1734222647322,-585.12,0.00013999,2]
[345387728,1734222647332,-585.12,0.00013999,2]
[345387730,1734222647342,-585.12,0.00013999,2]
[345387732,1734222647351,-585.12,0.00013999,2]
[345387734,1734222647361,-585.12,0.00013999,2]
[345387736,1734222647371,-7.85907048,0.00013999,2]
[345387740,1734222647399,-577.26092952,0.00013999,2]
[345387742,1734222647409,-33.29907048,0.00013999,2]
[345387744,1734222647420,-551.82092952,0.00013999,2]
[345387746,1734222647430,-306.9308238,0.00013999,2]
[345387788,1734222647830,-2151.0577244,0.00013944,2]
[345387791,1734222647850,-2008.5,0.00013944,2]
[345387794,1734222647870,-875.175,0.00013944,2]
[345387797,1734222647889,-734.70866164,0.00013944,2]
[345387803,1734222647934,-7962.55861396,0.00013944,2]
[345387805,1734222647948,-278.1891762,0.00013999,2]
[345387807,1734222647958,-585.12,0.00013999,2]
[345387809,1734222647968,-585.12,0.00013999,2]
[345387811,1734222647978,-585.12,0.00013999,2]
[345387813,1734222647987,-500.0,0.00013999,2]
[345387815,1734222647996,-585.12,0.00013999,2]
[345387817,1734222648006,-227.76,0.00013999,2]
[345387819,1734222648015,-585.12,0.00013999,2]
[345387821,1734222648025,-585.34082972,0.00013999,2]
[345387823,1734222648034,-500.0,0.00013999,2]
[345387825,1734222648044,-500.0,0.00013999,2]
[345387826,1734222648053,-500.0,0.00013999,2]
[345387828,1734222648063,-500.0,0.00013999,2]
[345387830,1734222648073,-346.18864201,0.00013999,2]
[345387832,1734222648082,-512.38,0.00013999,2]
[345387834,1734222648092,-500.0,0.00013999,2]
[345387836,1734222648101,-500.0,0.00013999,2]
[345387838,1734222648111,-500.0,0.00013999,2]
[345387840,1734222648121,-555.25,0.00013999,2]
[345387842,1734222648130,-500.0,0.00013999,2]
[345387844,1734222648140,-500.0,0.00013999,2]
[345387846,1734222648150,-500.0,0.00013999,2]
[345387848,1734222648160,-500.0,0.00013999,2]
[345387851,1734222648170,-500.0,0.00013999,2]
[345387853,1734222648185,-170.81702018,0.00013999,2]
[345387854,1734222648199,-940.8,0.00013999,2]
[345387856,1734222648209,-940.8,0.00013999,2]
[345387858,1734222648219,-940.8,0.00013999,2]
[345387860,1734222648229,-940.8,0.00013999,2]
[345387862,1734222648239,-940.8,0.00013999,2]
[345387864,1734222648250,-940.8,0.00013999,2]
[345387867,1734222648260,-940.8,0.00013999,2]
[345387868,1734222648270,-940.8,0.00013999,2]
[345387871,1734222648280,-940.8,0.00013999,2]
[345387873,1734222648290,-940.8,0.00013999,2]
[345387875,1734222648300,-587.48511381,0.00013999,2]
[345387877,1734222648313,-353.31488619,0.00013999,2]
[345387879,1734222648323,-415.90824381,0.00013999,2]
[345387881,1734222648336,-524.89175619,0.00013999,2]
[345387883,1734222648346,-260.44925223,0.00013999,2]
[345387885,1734222648358,-680.35074777,0.00013999,2]
[345387887,1734222648368,-516.36721544,0.00013999,2]
[345387889,1734222648380,-424.58983516,0.00013999,2]
[345387891,1734222648391,-100.51416464,0.00013999,2]
[345387894,1734222648403,-52.69821236,0.00013999,2]
[345387896,1734222648413,-500.0,0.00013999,2]
[345387898,1734222648423,-151.0,0.00013999,2]
[345387900,1734222648433,-151.0,0.00013999,2]
[345387902,1734222648447,-131.88679764,0.00013999,2]
[345387904,1734222648469,-690.03659919,0.00013944,2]
[345387908,1734222648495,-477.96340081,0.00013944,2]
[345387910,1734222648506,-64.96065536,0.00013999,2]
[345387912,1734222648516,-157.14494373,0.00013999,2]
[345387914,1734222648529,-342.85505627,0.00013999,2]
[345387916,1734222648539,-500.0,0.00013999,2]
[345387918,1734222648549,-500.0,0.00013999,2]
[345387920,1734222648559,-500.0,0.00013999,2]
[345387922,1734222648569,-500.0,0.00013999,2]
[345387924,1734222648580,-500.0,0.00013999,2]
[345387926,1734222648591,-500.0,0.00013999,2]
[345387928,1734222648601,-153.64494373,0.00013999,2]
[345387931,1734222648621,-346.35505627,0.00013999,2]
[345387933,1734222648632,-500.0,0.00013999,2]
[345387935,1734222648642,-500.0,0.00013999,2]
[345387937,1734222648652,-500.0,0.00013999,2]
[345387939,1734222648663,-386.960535,0.00013999,2]
[345387941,1734222648673,-500.0,0.00013999,2]
[345387943,1734222648683,-500.71969481,0.00013999,2]
[345387945,1734222648698,-451.68538157,0.00013999,2]
[345387947,1734222648707,-151.0,0.00013999,2]
[345387949,1734222648718,-151.0,0.00013999,2]
[345387951,1734222648729,-500.0,0.00013999,2]
[345387954,1734222648740,-525.66618224,0.00013999,2]
[345387956,1734222648752,-500.0,0.00013999,2]
[345387958,1734222648762,-500.0,0.00013999,2]
[345387960,1734222648772,-633.92,0.00013999,2]
[345387961,1734222648782,-500.0,0.00013999,2]
[345387963,1734222648793,-500.0,0.00013999,2]
[345387965,1734222648803,-500.0,0.00013999,2]
[345387967,1734222648813,-500.0,0.00013999,2]
[345387969,1734222648824,-500.0,0.00013999,2]
[345387971,1734222648834,-500.0,0.00013999,2]
[345387973,1734222648844,-500.77295705,0.00013999,2]
[345387975,1734222648855,-500.0,0.00013999,2]
[345387977,1734222648865,-500.0,0.00013999,2]
[345387979,1734222648875,-616.62,0.00013999,2]
[345387981,1734222648886,-500.0,0.00013999,2]
[345387983,1734222648895,-500.0,0.00013999,2]
[345387986,1734222648905,-500.0,0.00013999,2]
[345387987,1734222648916,-500.57033153,0.00013999,2]
[345387989,1734222648925,-500.0,0.00013999,2]
[345387991,1734222648934,-500.0,0.00013999,2]
[345387993,1734222648946,-500.0,0.00013999,2]
[345387995,1734222648956,-500.0,0.00013999,2]
[345387997,1734222648966,-500.0,0.00013999,2]
[345387999,1734222648976,-500.0,0.00013999,2]
[345388001,1734222648985,-500.0,0.00013999,2]
[345388003,1734222648995,-500.0,0.00013999,2]
[345388005,1734222649005,-500.0,0.00013999,2]
[345388007,1734222649014,-151.0,0.00013999,2]
[345388009,1734222649024,-151.0,0.00013999,2]
[345388011,1734222649033,-545.35,0.00013999,2]
[345388013,1734222649043,-151.0,0.00013999,2]
[345388015,1734222649053,-151.0,0.00013999,2]
[345388017,1734222649062,-500.0,0.00013999,2]
[345388019,1734222649072,-500.0,0.00013999,2]
[345388021,1734222649082,-500.0,0.00013999,2]
[345388023,1734222649092,-500.0,0.00013999,2]
[345388025,1734222649104,-500.0,0.00013999,2]
[345388027,1734222649114,-500.0,0.00013999,2]
[345388029,1734222649124,-380.11036459,0.00013999,2]
[345388031,1734222649134,-500.0,0.00013999,2]
[345388033,1734222649144,-500.0,0.00013999,2]
[345388035,1734222649155,-500.0,0.00013999,2]
[345388037,1734222649165,-519.37,0.00013999,2]
[345388039,1734222649176,-151.0,0.00013999,2]
[345388041,1734222649186,-500.0,0.00013999,2]
[345388043,1734222649202,-500.0,0.00013999,2]
[345388045,1734222649213,-500.0,0.00013999,2]
[345388047,1734222649223,-540.45,0.00013999,2]
[345388048,1734222649233,-500.0,0.00013999,2]
[345388049,1734222649246,-500.0,0.00013999,2]
[345388050,1734222649256,-601.92,0.00013999,2]
[345388051,1734222649266,-500.0,0.00013999,2]
[345388052,1734222649275,-151.0,0.00013999,2]
[345388053,1734222649285,-151.0,0.00013999,2]
[345388054,1734222649295,-151.0,0.00013999,2]
[345388055,1734222649305,-151.0,0.00013999,2]
[345388056,1734222649314,-151.0,0.00013999,2]
[345388057,1734222649324,-614.0,0.00013999,2]
[345388058,1734222649335,-147246.84045346,0.00014,4]
[345388059,1734222649375,-2097.68234552,0.00014,4]
[345388060,1734222649395,-151.0,0.00013999,2]
[345388062,1734222649406,-99.805001,0.00014,4]
[345388064,1734222649418,-534.28723276,0.00014,4]
[345388066,1734222649429,-34452.69927563,0.00014,4]
[345388070,1734222649514,-152.242,0.00013944,2]
[345388071,1734222649524,-151.0,0.00013999,2]
[345388073,1734222649533,-151.0,0.00013999,2]
[345388075,1734222649543,-227.59383395,0.00014,4]
[345388077,1734222649554,-1947.01661006,0.00014,4]
[345388079,1734222649565,-2016.40748433,0.00014,4]
[345388080,1734222649583,-1750.35,0.00014,4]
[345388081,1734222649595,-451.88977681,0.00014,4]
[345388082,1734222649607,-926.49999926,0.00014,4]
[345388083,1734222649622,-507.24000004,0.00014,4]
[345388084,1734222649635,-74394.1949171,0.00014,4]
[345388085,1734222649680,-279.211158,0.00013999,2]
[345388086,1734222649695,-437.49245157,0.00014,4]
[345388087,1734222649707,-2494.46051658,0.00014,4]
[345388089,1734222649718,-9956.3492848,0.00014,4]
[345388090,1734222649729,-281.0,0.00014,4]
[345388091,1734222649742,-595.0595,0.00014,4]
[345388092,1734222649753,-622.15636844,0.00014,4]
[345388093,1734222649808,-631.90208107,0.00014,4]
[345388096,1734223035464,152.37,0.00016658,30]
[345388097,1734223645185,-187.09,0.00010163,2]
[345388098,1734223645210,-891.49,0.00010732,2]
[345388099,1734223645235,-850.63,0.00012678,2]
[345388100,1734223645258,-250.0,0.00012691,2]
[345388101,1734223645282,-16273.10963386,0.00012707,2]
[345388120,1734223832418,-500.0,0.00012707,2]
[345388121,1734223832475,-20014.89036614,0.00012707,2]
[345388122,1734223832487,-200.0,0.00012707,2]
[345388123,1734223832496,-150.0,0.00012708,2]
[345388124,1734223832505,-250.0,0.0001272,2]
[345388125,1734223832515,-3189.28,0.00012721,2]
[345388126,1734223832531,-1000.0,0.00012735,2]
[345388127,1734223832540,-150.0,0.0001274,2]
[345388128,1734223832549,-250.0,0.00012755,2]
[345388129,1734223832559,-891.49,0.00012996,2]
[345388130,1734223832568,-1000.000001,0.00013,2]
[345388131,1734223832578,-150.121509,0.00013098,3]
[345388132,1734223832588,-150.121509,0.00013098,2]
[345388133,1734223832598,-150.121509,0.00013198,2]
[345388134,1734223832607,-150.121509,0.00013198,3]
[345388135,1734223832617,-150.121509,0.00013298,3]
[345388136,1734223832627,-150.121509,0.00013298,2]
[345388137,1734223832636,-320.855,0.000133,2]
[345388138,1734223832646,-177.16,0.00013334,2]
[345388139,1734223832656,-150.713,0.00013346,2]
[345388140,1734223832666,-2006.0,0.00013346,2]
[345388141,1734223832675,-1263.0,0.00013346,2]
[345388142,1734223832685,-211.762,0.00013346,2]
[345388143,1734223832694,-632.0,0.00013346,2]
[345388144,1734223832703,-247.712,0.00013346,2]
[345388145,1734223832713,-651.219,0.00013346,2]
[345388146,1734223832722,-1895.0,0.00013346,2]
[345388147,1734223832732,-930.0,0.00013346,2]
[345388148,1734223832742,-3765.0,0.00013346,2]
[345388149,1734223832752,-817.0,0.00013346,2]
[345388151,1734223832761,-1254.0,0.00013346,2]
[345388153,1734223832777,-535.0,0.00013346,2]
[345388155,1734223832787,-3630.0,0.00013346,2]
[345388157,1734223832797,-150.0,0.00013346,2]
[345388159,1734223832807,-3880.0,0.00013346,2]
[345388161,1734223832817,-150.0,0.00013346,2]
[345388163,1734223832826,-150.22,0.00013346,2]
[345388165,1734223832835,-150.0,0.00013346,2]
[345388167,1734223832845,-157.0,0.00013346,2]
[345388169,1734223832854,-11203.969,0.00013346,2]
[345388171,1734223832864,-1168.0,0.00013346,2]
[345388173,1734223832873,-150.121509,0.00013398,2]
[345388175,1734223832883,-150.121509,0.00013398,3]
[345388177,1734223832892,-177.16,0.000134,2]
[345388179,1734223832902,-150.121509,0.00013498,3]
[345388182,1734223832912,-150.121509,0.00013498,2]
[345388185,1734223832921,-150.121509,0.00013598,2]
[345388188,1734223832932,-150.121509,0.00013598,3]
[345388191,1734223832941,-686.68,0.00013612,2]
[345388194,1734223832951,-150.121509,0.00013698,3]
[345388198,1734223832961,-150.121509,0.00013698,2]
[345388201,1734223832970,-159.55,0.00013699,2]
[345388204,1734223832980,-1956.637,0.00013699,2]
[345388207,1734223832989,-167.543,0.00013699,2]
[345388210,1734223832999,-150.121509,0.00013798,2]
[345388213,1734223833008,-150.121509,0.00013798,3]
[345388215,1734223833017,-218.5823,0.00013873,2]
[345388217,1734223833035,-310.4938,0.00013873,2]
[345388218,1734223833045,-264.6542,0.00013873,2]
[345388219,1734223833055,-3851.358,0.00013873,2]
[345388220,1734223833065,-500.0,0.00013888,2]
[345388221,1734223833076,-150.121509,0.00013898,3]
[345388222,1734223833087,-150.121509,0.00013898,2]
[345388223,1734223833097,-490.35543662,0.00013898,2]
[345388224,1734223833107,-1333.5295,0.00013898,2]
[345388225,1734223833116,-1400.8316,0.00013898,2]
[345388226,1734223833127,-490.35543656,0.00013898,2]
[345388227,1734223833138,-490.35543656,0.00013898,2]
[345388228,1734223833148,-490.35543656,0.00013899,2]
[345388229,1734223833158,-490.35543656,0.00013899,2]
[345388230,1734223833168,-490.35543656,0.00013899,2]
[345388231,1734223833177,-490.35543656,0.00013899,2]
[345388232,1734223833187,-490.35543656,0.000139,2]
[345388233,1734223833197,-16353.1192,0.000139,2]
[345388234,1734223833207,-5000.0,0.000139,2]
[345388235,1734223833216,-1745.124,0.000139,2]
[345388236,1734223833226,-620.0694,0.000139,2]
[345388237,1734223833236,-490.35543656,0.000139,2]
[345388238,1734223833246,-159.75961037,0.000139,2]
[345388239,1734223833256,-318.90735348,0.000139,2]
[345388240,1734223833266,-160.14369709,0.000139,2]
[345388241,1734223833282,-490.35543656,0.000139,2]
[345388242,1734223833292,-157.87833534,0.000139,2]
[345388243,1734223833303,-542.83385186,0.000139,2]
[345388244,1734223833313,-1895.45938732,0.000139,2]
[345388245,1734223833322,-428.15146824,0.0001392,2]
[345388246,1734223833332,-200.0,0.00013964,2]
[345388247,1734223833342,-13241.0,0.00013973,2]
[345388248,1734223833352,-14789.0,0.00013973,2]
[345388249,1734223833362,-9800.0,0.00013973,2]
[345388250,1734223833372,-150.121509,0.00013998,2]
[345388251,1734223833381,-150.121509,0.00013998,3]
[345388252,1734223833392,-500.0,0.00013998,2]
[345388253,1734223833402,-420.0470797,0.00013998,2]
[345388254,1734223833411,-391.6376775,0.00013998,2]
[345388255,1734223833421,-282.2918066,0.00013998,2]
[345388256,1734223833431,-500.8162574,0.00013998,2]
[345388257,1734223833440,-9553.097661,0.00013998,2]
[345388258,1734223833450,-500.0,0.00013999,2]
[345388259,1734223833460,-500.0,0.00013999,2]
[345388260,1734223833469,-500.0,0.00013999,2]
[345388261,1734223833479,-500.0,0.00013999,2]
[345388262,1734223833489,-500.0,0.00013999,2]
[345388263,1734223833500,-555.19135467,0.00013999,2]
[345388264,1734223833510,-403.88,0.00013999,2]
[345388265,1734223833519,-500.0,0.00013999,2]
[345388266,1734223833536,-500.0,0.00013999,2]
[345388267,1734223833546,-564.52374134,0.00013999,2]
[345388268,1734223833556,-241.66347646,0.00013999,2]
[345388269,1734223833566,-712.4,0.00013999,2]
[345388270,1734223833576,-712.4,0.00013999,2]
[345388271,1734223833585,-712.4,0.00013999,2]
[345388272,1734223833595,-712.4,0.00013999,2]
[345388273,1734223833605,-712.4,0.00013999,2]
[345388274,1734223833614,-712.4,0.00013999,2]
[345388275,1734223833623,-712.4,0.00013999,2]
[345388276,1734223833633,-712.4,0.00013999,2]
[345388277,1734223833643,-712.4,0.00013999,2]
[345388278,1734223833654,-712.4,0.00013999,2]
[345388279,1734223833664,-712.4,0.00013999,2]
[345388280,1734223833674,-712.4,0.00013999,2]
[345388281,1734223833684,-712.4,0.00013999,2]
[345388282,1734223833694,-712.4,0.00013999,2]
[345388283,1734223833704,-712.4,0.00013999,2]
[345388284,1734223833714,-712.4,0.00013999,2]
[345388285,1734223833724,-712.4,0.00013999,2]
[345388286,1734223833734,-712.4,0.00013999,2]
[345388287,1734223833744,-712.4,0.00013999,2]
[345388288,1734223833754,-712.4,0.00013999,2]
[345388289,1734223833764,-712.4,0.00013999,2]
[345388290,1734223833782,-712.4,0.00013999,2]
[345388291,1734223833791,-712.4,0.00013999,2]
[345388292,1734223833802,-712.5,0.00013999,2]
[345388293,1734223833811,-3000.0,0.00013999,2]
[345388294,1734223833821,-360.00295044,0.00013999,2]
[345388295,1734223833830,-775.0,0.00013999,2]
[345388296,1734223833840,-189229.16113931,0.00013999,4]
[345388297,1734223833855,-371878.53886944,0.00013999,4]
[345388298,1734223833872,-653.72561394,0.00013999,4]
[345388299,1734223833885,-2263.27567966,0.00013999,4]
[345388301,1734223838413,-1099.0,0.00013346,2]
[345388302,1734223838423,-442.4448,0.00013999,4]
[345388303,1734223838792,-2142.69484311,0.00013999,4]
[345388304,1734223838843,-7233.30276993,0.00013999,4]
[345388347,1734223840462,-4033.43906681,0.00013999,4]
[345388349,1734223840476,-1150.77438031,0.00013999,4]
[345388429,1734223843332,-150.0,0.00013346,2]
[345388430,1734223843342,-1467.1710672,0.00013999,4]
[345388431,1734223843551,-2538.94254066,0.00013999,4]
[345388432,1734223843604,-2847.59268996,0.00013999,4]
[345388435,1734223846532,-3012.96773713,0.00013999,4]
[345388436,1734223846544,-1498.22194718,0.00013999,4]
[345388437,1734223846556,-1438.13578891,0.00013999,4]
[345388438,1734223846567,-1076.24944658,0.00013999,4]
[345388439,1734223846579,-2827.14045835,0.00013999,4]
[345388440,1734223846591,-337.87858092,0.00013999,4]
[345388441,1734223846602,-574.37240846,0.00013999,4]
[345388442,1734223846613,-1470.51803953,0.00013999,4]
[345388443,1734223846629,-265.05252723,0.00013999,4]
[345388444,1734223846640,-1051.96977662,0.00013999,4]
[345388445,1734223846651,-3460.80620219,0.00013999,4]
[345388446,1734223846664,-5467.74883828,0.00013999,4]
[345388447,1734223989762,152.37,0.00016658,30]
[345388449,1734224212808,223.75,0.0002,120]
[345388450,1734224315737,326.72455569,1e-06,2]
[345388451,1734224668150,-1144.04928164,0.00010137,2]
[345388452,1734224668173,-308.33,0.00010137,2]
[345388453,1734224668198,-691.44,0.00012576,2]
[345388454,1734224668222,-200.0,0.00012594,2]
[345388455,1734224668244,-300.0,0.00012646,2]
[345388456,1734224668267,-250.0,0.00012657,2]
[345388457,1734224668295,-250.0,0.00012665,2]
[345388458,1734224668318,-1000.0,0.0001268,2]
[345388459,1734224668343,-211.24,0.00012695,2]
[345388460,1734224668370,-2869.64,0.00012709,2]
[345388461,1734224668393,-3818.1,0.00012713,2]
[345388462,1734224668419,-2751.0,0.00012729,2]
[345388463,1734224668442,-250.0,0.00012752,2]
[345388464,1734224668466,-1709.81,0.00012769,2]
[345388465,1734224668490,-450.0,0.00013,2]
[345388466,1734224668516,-150.121509,0.00013098,3]
[345388467,1734224668542,-150.121509,0.00013098,2]
[345388468,1734224668567,-150.121509,0.00013198,2]
[345388469,1734224668593,-150.121509,0.00013198,3]
[345388470,1734224668617,-150.121509,0.00013298,3]
[345388471,1734224668640,-150.121509,0.00013298,2]
[345388472,1734224668663,-325.348,0.000133,2]
[345388473,1734224668686,-569.01,0.00013324,2]
[345388474,1734224668709,-159.151,0.00013346,2]
[345388475,1734224668731,-183.158,0.00013346,2]
[345388476,1734224668755,-204.318,0.00013346,2]
[345388477,1734224668794,-196.567,0.00013346,2]
[345388478,1734224668817,-150.0,0.00013346,2]
[345388479,1734224668840,-1263.0,0.00013346,2]